[Event "Early-Titled-Tuesday-Blitz-October-24-2023"]
[Site "Chess.com"]
[Date "2023.10.24"]
[Round "2"]
[White "WindWhistler11"]
[Black "ferrufino64"]
[Result "1-0"]
[WhiteElo "2452"]
[BlackElo "2198"]
[TimeControl "180+1"]
[EndTime "8:16:37 PDT"]
[Termination "WindWhistler11 won by resignation"]

1. Nf3 {[%clk 0:02:18.4]} 1... c5 {[%clk 0:02:58.8]} 2. d3 {[%clk 0:02:18.7]}
2... Nc6 {[%clk 0:02:58.9]} 3. g3 {[%clk 0:02:19.3]} 3... g6 {[%clk 0:02:59.1]}
4. Bg2 {[%clk 0:02:20]} 4... Bg7 {[%clk 0:02:59.4]} 5. O-O {[%clk 0:02:20.9]}
5... d6 {[%clk 0:02:59.6]} 6. Nbd2 {[%clk 0:02:21.4]} 6... e5 {[%clk 0:02:59.4]}
7. e4 {[%clk 0:02:21.6]} 7... Nge7 {[%clk 0:02:58.9]} 8. c3 {[%clk 0:02:22.3]}
8... h6 {[%clk 0:02:58.3]} 9. a4 {[%clk 0:02:22.4]} 9... Be6 {[%clk 0:02:58.4]}
10. Rb1 {[%clk 0:02:19.9]} 10... a5 {[%clk 0:02:57.8]} 11. Qc2 {[%clk
0:02:19.6]} 11... O-O {[%clk 0:02:51.9]} 12. b3 {[%clk 0:02:19.6]} 12... d5
{[%clk 0:02:52]} 13. exd5 {[%clk 0:02:15.6]} 13... Nxd5 {[%clk 0:02:52]} 14. Nc4
{[%clk 0:02:15.6]} 14... e4 {[%clk 0:02:44.1]} 15. dxe4 {[%clk 0:02:08.6]} 15...
Nxc3 {[%clk 0:02:44.3]} 16. Rb2 {[%clk 0:01:38]} 16... Nb4 {[%clk 0:02:43.2]}
17. Qd2 {[%clk 0:01:34.2]} 17... Nd3 {[%clk 0:02:02.5]} 18. Rc2 {[%clk
0:01:26.4]} 18... Nxe4 {[%clk 0:01:58.4]} 19. Qe3 {[%clk 0:01:19]} 19... Nxc1
{[%clk 0:01:55.2]} 20. Rfxc1 {[%clk 0:01:16.4]} 20... Bf5 {[%clk 0:01:22.4]} 21.
Nh4 {[%clk 0:01:10.4]} 21... Bd4 {[%clk 0:01:22.4]} 22. Qxh6 {[%clk 0:01:04.3]}
22... Nf6 {[%clk 0:00:15.5]} 23. Nxf5 {[%clk 0:00:56.4]} 23... gxf5 {[%clk
0:00:16.4]} 24. Qg5+ {[%clk 0:00:47.9]} 24... Kh8 {[%clk 0:00:15.6]} 25. Qxf5
{[%clk 0:00:45.9]} 25... Re8 {[%clk 0:00:14]} 26. Bxb7 {[%clk 0:00:39.9]} 26...
Rb8 {[%clk 0:00:13.8]} 27. Ba6 {[%clk 0:00:34.6]} 27... Kg7 {[%clk 0:00:12.6]}
28. Bb5 {[%clk 0:00:34.5]} 28... Re6 {[%clk 0:00:12.4]} 29. Qf3 {[%clk
0:00:30.6]} 29... Nh7 {[%clk 0:00:12.4]} 30. Ne3 {[%clk 0:00:30.1]} 30... Qf6
{[%clk 0:00:12.2]} 31. Nf5+ {[%clk 0:00:28.7]} 31... Kf8 {[%clk 0:00:12]} 32.
Nxd4 {[%clk 0:00:28.7]} 32... Qxd4 {[%clk 0:00:11.3]} 33. Rxc5 {[%clk
0:00:28.8]} 33... Rd8 {[%clk 0:00:10.5]} 34. Rf5 {[%clk 0:00:24.8]} 34... Ng5
{[%clk 0:00:10.3]} 35. Rxg5 {[%clk 0:00:23.7]} 1-0

[Event "Early-Titled-Tuesday-Blitz-October-24-2023"]
[Site "Chess.com"]
[Date "2023.10.24"]
[Round "2"]
[White "Alina_Gumerovna"]
[Black "Bilan_Danila"]
[Result "1-0"]
[WhiteElo "2086"]
[BlackElo "2415"]
[TimeControl "180+1"]
[EndTime "8:16:37 PDT"]
[Termination "Alina_Gumerovna won on time"]

1. e4 {[%clk 0:03:00]} 1... c6 {[%clk 0:03:00.3]} 2. d4 {[%clk 0:02:59.3]} 2...
d5 {[%clk 0:03:01.2]} 3. Nc3 {[%clk 0:02:59]} 3... b5 {[%clk 0:03:00.6]} 4. a3
{[%clk 0:02:52.7]} 4... e6 {[%clk 0:03:00.4]} 5. f4 {[%clk 0:02:49.2]} 5... b4
{[%clk 0:02:58]} 6. axb4 {[%clk 0:02:49]} 6... Bxb4 {[%clk 0:02:58.9]} 7. e5
{[%clk 0:02:45.8]} 7... Ne7 {[%clk 0:02:59.1]} 8. Nf3 {[%clk 0:02:43.7]} 8... c5
{[%clk 0:02:54.2]} 9. Bb5+ {[%clk 0:02:42.1]} 9... Bd7 {[%clk 0:02:52.7]} 10.
Bxd7+ {[%clk 0:02:41.6]} 10... Nxd7 {[%clk 0:02:53.6]} 11. Bd2 {[%clk
0:02:40.6]} 11... O-O {[%clk 0:02:33.4]} 12. Nb5 {[%clk 0:02:29.5]} 12... Qb6
{[%clk 0:02:19.9]} 13. Nd6 {[%clk 0:02:29.5]} 13... cxd4 {[%clk 0:01:41.2]} 14.
Bxb4 {[%clk 0:02:26.1]} 14... Qxb4+ {[%clk 0:01:41.9]} 15. Qd2 {[%clk
0:02:26.3]} 15... Qxb2 {[%clk 0:01:36.2]} 16. O-O {[%clk 0:02:26.1]} 16... Nc8
{[%clk 0:01:30.3]} 17. Rfb1 {[%clk 0:01:41]} 17... Qc3 {[%clk 0:01:27.7]} 18.
Qxd4 {[%clk 0:01:39.5]} 18... Qxd4+ {[%clk 0:01:20.6]} 19. Nxd4 {[%clk
0:01:40.4]} 19... Nxd6 {[%clk 0:01:17.3]} 20. exd6 {[%clk 0:01:41.3]} 20... Rfc8
{[%clk 0:01:14.1]} 21. Rb7 {[%clk 0:01:39.6]} 21... Nf6 {[%clk 0:00:59.1]} 22.
Raxa7 {[%clk 0:01:30.9]} 22... Rxa7 {[%clk 0:00:59]} 23. Rxa7 {[%clk 0:01:31.8]}
23... h5 {[%clk 0:00:47.6]} 24. Rc7 {[%clk 0:01:11.2]} 24... Rd8 {[%clk
0:00:42.5]} 25. Nb5 {[%clk 0:01:11.4]} 25... Ne4 {[%clk 0:00:23.7]} 26. Rc6
{[%clk 0:01:09.9]} 26... g6 {[%clk 0:00:19.6]} 27. Kf1 {[%clk 0:01:04.1]} 27...
Kg7 {[%clk 0:00:19.8]} 28. Ke2 {[%clk 0:01:04.3]} 28... Kf6 {[%clk 0:00:19]} 29.
Ke3 {[%clk 0:01:01.4]} 29... Rd7 {[%clk 0:00:15.5]} 30. c4 {[%clk 0:00:49]}
30... Kf5 {[%clk 0:00:04.2]} 31. Rc7 {[%clk 0:00:30.3]} 31... Nf6 {[%clk
0:00:03.2]} 32. c5 {[%clk 0:00:26.4]} 1-0

[Event "Early-Titled-Tuesday-Blitz-October-24-2023"]
[Site "Chess.com"]
[Date "2023.10.24"]
[Round "2"]
[White "ErikRonka"]
[Black "Lennis93"]
[Result "1-0"]
[WhiteElo "2519"]
[BlackElo "2742"]
[TimeControl "180+1"]
[EndTime "8:16:38 PDT"]
[Termination "ErikRonka won by checkmate"]

1. e4 {[%clk 0:03:00.9]} 1... c5 {[%clk 0:02:59.7]} 2. Nf3 {[%clk 0:03:01.2]}
2... Nc6 {[%clk 0:03:00.4]} 3. d4 {[%clk 0:03:01.7]} 3... cxd4 {[%clk
0:03:01.3]} 4. Nxd4 {[%clk 0:03:02.6]} 4... Nf6 {[%clk 0:03:00.8]} 5. Nc3 {[%clk
0:03:03.2]} 5... e5 {[%clk 0:03:01.1]} 6. Ndb5 {[%clk 0:03:03.9]} 6... d6 {[%clk
0:03:01.4]} 7. Bg5 {[%clk 0:03:04.6]} 7... a6 {[%clk 0:03:01.8]} 8. Na3 {[%clk
0:03:05.3]} 8... b5 {[%clk 0:03:01.8]} 9. Bxf6 {[%clk 0:03:04.1]} 9... gxf6
{[%clk 0:03:01.8]} 10. Nd5 {[%clk 0:03:05]} 10... Bg7 {[%clk 0:03:01.6]} 11. Bd3
{[%clk 0:03:03.4]} 11... Ne7 {[%clk 0:02:59.1]} 12. Nxe7 {[%clk 0:03:03.1]}
12... Qxe7 {[%clk 0:03:00]} 13. Qh5 {[%clk 0:02:29.5]} 13... f5 {[%clk
0:02:58.4]} 14. O-O {[%clk 0:02:25.6]} 14... d5 {[%clk 0:02:55.7]} 15. f3 {[%clk
0:00:55.1]} 15... O-O {[%clk 0:02:53.2]} 16. Rae1 {[%clk 0:00:43.3]} 16... fxe4
{[%clk 0:02:51.6]} 17. fxe4 {[%clk 0:00:43.2]} 17... f5 {[%clk 0:02:52.3]} 18.
exf5 {[%clk 0:00:37.2]} 18... e4 {[%clk 0:02:52.5]} 19. Kh1 {[%clk 0:00:20.5]}
19... Bxb2 {[%clk 0:02:41.2]} 20. f6 {[%clk 0:00:18.9]} 20... Qb7 {[%clk
0:02:25]} 21. f7+ {[%clk 0:00:02.8]} 21... Kh8 {[%clk 0:02:24]} 22. Be2 {[%clk
0:00:03.7]} 22... Be6 {[%clk 0:02:20.2]} 23. Nb1 {[%clk 0:00:03.5]} 23... Rxf7
{[%clk 0:02:19.8]} 24. c3 {[%clk 0:00:03.8]} 24... Rxf1+ {[%clk 0:02:08.6]} 25.
Rxf1 {[%clk 0:00:04.7]} 25... Qg7 {[%clk 0:02:08.7]} 26. h3 {[%clk 0:00:03.4]}
26... Bxc3 {[%clk 0:02:08.1]} 27. Nxc3 {[%clk 0:00:03.3]} 27... Qxc3 {[%clk
0:02:09]} 28. Qh6 {[%clk 0:00:03.4]} 28... Re8 {[%clk 0:02:01.5]} 29. Bh5 {[%clk
0:00:03.2]} 29... Re7 {[%clk 0:01:44.2]} 30. Qf8+ {[%clk 0:00:03]} 30... Bg8
{[%clk 0:01:43.5]} 31. Qxe7 {[%clk 0:00:03.5]} 31... Qg7 {[%clk 0:01:43.5]} 32.
Qf6 {[%clk 0:00:03.9]} 32... Qxf6 {[%clk 0:01:40.1]} 33. Rxf6 {[%clk 0:00:04.8]}
33... d4 {[%clk 0:01:40.4]} 34. Rd6 {[%clk 0:00:05.6]} 34... d3 {[%clk
0:01:40.5]} 35. Kg1 {[%clk 0:00:06.3]} 35... Bxa2 {[%clk 0:01:38.2]} 36. Kf2
{[%clk 0:00:06.8]} 36... a5 {[%clk 0:01:38.5]} 37. Ke3 {[%clk 0:00:07.4]} 37...
Bb1 {[%clk 0:01:38.4]} 38. Rd5 {[%clk 0:00:06.1]} 38... d2 {[%clk 0:01:33.9]}
39. Kxd2 {[%clk 0:00:05.5]} 39... Bd3 {[%clk 0:01:33.6]} 40. Be2 {[%clk
0:00:04.9]} 40... e3+ {[%clk 0:01:02.6]} 41. Kxe3 {[%clk 0:00:05]} 41... Bxe2
{[%clk 0:01:03.5]} 42. Kxe2 {[%clk 0:00:05.5]} 42... b4 {[%clk 0:01:04.4]} 43.
Rxa5 {[%clk 0:00:05.6]} 43... b3 {[%clk 0:01:05.3]} 44. Rb5 {[%clk 0:00:06.4]}
44... b2 {[%clk 0:01:06.2]} 45. Rxb2 {[%clk 0:00:06.8]} 45... Kg7 {[%clk
0:01:07.1]} 46. Kf3 {[%clk 0:00:07.4]} 46... Kf6 {[%clk 0:01:08]} 47. Kf4 {[%clk
0:00:08.1]} 47... Ke6 {[%clk 0:01:08.3]} 48. g4 {[%clk 0:00:08.6]} 48... Kf6
{[%clk 0:01:09.2]} 49. Rb6+ {[%clk 0:00:08.1]} 49... Kg7 {[%clk 0:01:09.5]} 50.
Kg5 {[%clk 0:00:08.6]} 50... h6+ {[%clk 0:01:09.6]} 51. Kf5 {[%clk 0:00:08.7]}
51... Kf7 {[%clk 0:01:10.5]} 52. Rb7+ {[%clk 0:00:09.1]} 52... Kg8 {[%clk
0:01:10.1]} 53. Kg6 {[%clk 0:00:09.3]} 53... Kf8 {[%clk 0:01:11]} 54. Kxh6
{[%clk 0:00:07.7]} 54... Ke8 {[%clk 0:01:11.9]} 55. g5 {[%clk 0:00:08.1]} 55...
Kd8 {[%clk 0:01:12.8]} 56. Rh7 {[%clk 0:00:07.4]} 56... Kc8 {[%clk 0:01:13.7]}
57. g6 {[%clk 0:00:07.8]} 57... Kd8 {[%clk 0:01:14.6]} 58. g7 {[%clk 0:00:07.9]}
58... Ke8 {[%clk 0:01:15.5]} 59. g8=Q# {[%clk 0:00:08.2]} 1-0

[Event "Early-Titled-Tuesday-Blitz-October-24-2023"]
[Site "Chess.com"]
[Date "2023.10.24"]
[Round "2"]
[White "dosto07"]
[Black "johnmez"]
[Result "1/2-1/2"]
[WhiteElo "2511"]
[BlackElo "2301"]
[TimeControl "180+1"]
[EndTime "8:16:39 PDT"]
[Termination "Game drawn by repetition"]

1. e4 {[%clk 0:03:00.9]} 1... e6 {[%clk 0:02:59.5]} 2. d4 {[%clk 0:03:00.6]}
2... d5 {[%clk 0:03:00]} 3. Nd2 {[%clk 0:03:01]} 3... Be7 {[%clk 0:02:55.7]} 4.
Bd3 {[%clk 0:02:59.9]} 4... c5 {[%clk 0:02:52.2]} 5. dxc5 {[%clk 0:02:55]} 5...
Nf6 {[%clk 0:02:49.5]} 6. Qe2 {[%clk 0:02:54.5]} 6... a5 {[%clk 0:02:44.1]} 7.
Ngf3 {[%clk 0:02:53.6]} 7... O-O {[%clk 0:02:38.4]} 8. O-O {[%clk 0:02:52.1]}
8... Na6 {[%clk 0:02:37.9]} 9. exd5 {[%clk 0:02:30.6]} 9... exd5 {[%clk
0:02:36]} 10. Bxa6 {[%clk 0:02:24]} 10... Rxa6 {[%clk 0:02:36.9]} 11. Nb3 {[%clk
0:02:23.7]} 11... Bg4 {[%clk 0:02:23.8]} 12. h3 {[%clk 0:02:12.1]} 12... Bh5
{[%clk 0:02:23.6]} 13. Bf4 {[%clk 0:02:06.9]} 13... a4 {[%clk 0:02:06.3]} 14.
Nbd4 {[%clk 0:02:06.4]} 14... Bxc5 {[%clk 0:02:06.4]} 15. Rfd1 {[%clk
0:02:04.1]} 15... Re8 {[%clk 0:01:48.5]} 16. Qb5 {[%clk 0:02:01.3]} 16... Bxd4
{[%clk 0:01:42.2]} 17. Rxd4 {[%clk 0:01:54.3]} 17... Bxf3 {[%clk 0:01:42.3]} 18.
gxf3 {[%clk 0:01:54]} 18... Qc8 {[%clk 0:01:31.1]} 19. Bg5 {[%clk 0:01:39.2]}
19... h6 {[%clk 0:00:41.6]} 20. Bxf6 {[%clk 0:01:37.2]} 20... Rxf6 {[%clk
0:00:42.5]} 21. Kg2 {[%clk 0:01:18.9]} 21... Re5 {[%clk 0:00:36.1]} 22. Qxa4
{[%clk 0:01:10.1]} 22... Rxf3 {[%clk 0:00:11.5]} 23. Rh1 {[%clk 0:00:37.7]}
23... Ref5 {[%clk 0:00:11.2]} 24. Rd2 {[%clk 0:00:33.7]} 24... Qe6 {[%clk
0:00:11.7]} 25. Kf1 {[%clk 0:00:23.9]} 25... Kh7 {[%clk 0:00:06.7]} 26. Qg4
{[%clk 0:00:21.6]} 26... R3f4 {[%clk 0:00:04.6]} 27. Qe2 {[%clk 0:00:20.4]}
27... Re4 {[%clk 0:00:04.8]} 28. Qd1 {[%clk 0:00:19.6]} 28... Rfe5 {[%clk
0:00:04.7]} 29. Kg2 {[%clk 0:00:17.6]} 29... Qg6+ {[%clk 0:00:04.7]} 30. Kf1
{[%clk 0:00:17.2]} 30... Qe6 {[%clk 0:00:04.1]} 31. Kg2 {[%clk 0:00:16.2]} 31...
Rg5+ {[%clk 0:00:04.4]} 32. Kf1 {[%clk 0:00:15.4]} 32... Rge5 {[%clk 0:00:02.8]}
1/2-1/2

[Event "Early-Titled-Tuesday-Blitz-October-24-2023"]
[Site "Chess.com"]
[Date "2023.10.24"]
[Round "2"]
[White "ideika"]
[Black "crazy_m_attack"]
[Result "1-0"]
[WhiteElo "2309"]
[BlackElo "2440"]
[TimeControl "180+1"]
[EndTime "8:16:39 PDT"]
[Termination "ideika won on time"]

1. e4 {[%clk 0:03:00]} 1... e5 {[%clk 0:03:00]} 2. Nf3 {[%clk 0:03:00]} 2... Nc6
{[%clk 0:03:00.4]} 3. Bc4 {[%clk 0:03:00.6]} 3... Nf6 {[%clk 0:02:59.7]} 4. Ng5
{[%clk 0:03:00.1]} 4... d5 {[%clk 0:03:00]} 5. exd5 {[%clk 0:02:59.8]} 5... Na5
{[%clk 0:03:00.7]} 6. Bb5+ {[%clk 0:02:59.3]} 6... c6 {[%clk 0:03:01.2]} 7. dxc6
{[%clk 0:03:00.2]} 7... bxc6 {[%clk 0:03:02.1]} 8. Qf3 {[%clk 0:03:00]} 8... Be7
{[%clk 0:03:01.9]} 9. Bxc6+ {[%clk 0:02:58.5]} 9... Nxc6 {[%clk 0:03:02.8]} 10.
Qxc6+ {[%clk 0:02:58.9]} 10... Bd7 {[%clk 0:03:03.6]} 11. Qf3 {[%clk 0:02:16.8]}
11... O-O {[%clk 0:02:36.9]} 12. Nc3 {[%clk 0:02:16.8]} 12... Ng4 {[%clk
0:02:16.3]} 13. Nge4 {[%clk 0:02:16.7]} 13... f5 {[%clk 0:02:15.4]} 14. Ng3
{[%clk 0:01:58.5]} 14... e4 {[%clk 0:02:11]} 15. Qe2 {[%clk 0:01:58.5]} 15...
Bc5 {[%clk 0:02:09.8]} 16. Qc4+ {[%clk 0:01:54.5]} 16... Kh8 {[%clk 0:02:02.6]}
17. Qxc5 {[%clk 0:01:53.5]} 17... Rc8 {[%clk 0:02:02.8]} 18. Qxa7 {[%clk
0:01:48.7]} 18... Bc6 {[%clk 0:01:56.9]} 19. h3 {[%clk 0:01:30.5]} 19... Ne5
{[%clk 0:01:47.9]} 20. Nce2 {[%clk 0:01:29.7]} 20... f4 {[%clk 0:01:46.3]} 21.
Nh5 {[%clk 0:01:14.5]} 21... Rf7 {[%clk 0:00:44.6]} 22. Qd4 {[%clk 0:01:13.9]}
22... Qg5 {[%clk 0:00:40.6]} 23. Nhxf4 {[%clk 0:01:03.8]} 23... Rxf4 {[%clk
0:00:34.7]} 24. Nxf4 {[%clk 0:00:53]} 24... Qxf4 {[%clk 0:00:35.6]} 25. O-O
{[%clk 0:00:51.3]} 25... Qg5 {[%clk 0:00:30.3]} 26. d3 {[%clk 0:00:49.5]} 26...
Nf3+ {[%clk 0:00:03.9]} 27. Kh1 {[%clk 0:00:44]} 27... Qxc1 {[%clk 0:00:02.1]}
28. Raxc1 {[%clk 0:00:42.1]} 28... Nxd4 {[%clk 0:00:02]} 29. dxe4 {[%clk
0:00:41.2]} 29... Bxe4 {[%clk 0:00:02.9]} 30. c3 {[%clk 0:00:40.4]} 30... Nc6
{[%clk 0:00:03.1]} 31. Rfe1 {[%clk 0:00:39.6]} 31... Bg6 {[%clk 0:00:03.7]} 32.
Re3 {[%clk 0:00:39.5]} 32... h6 {[%clk 0:00:04.1]} 33. Rce1 {[%clk 0:00:39.7]}
33... Rd8 {[%clk 0:00:03.4]} 34. Re6 {[%clk 0:00:36.5]} 1-0

[Event "Early-Titled-Tuesday-Blitz-October-24-2023"]
[Site "Chess.com"]
[Date "2023.10.24"]
[Round "2"]
[White "tusplingher"]
[Black "rikchessmx"]
[Result "1-0"]
[WhiteElo "2522"]
[BlackElo "2289"]
[TimeControl "180+1"]
[EndTime "8:16:40 PDT"]
[Termination "tusplingher won by checkmate"]

1. e4 {[%clk 0:03:00.9]} 1... e5 {[%clk 0:03:00.9]} 2. Nf3 {[%clk 0:03:00.6]}
2... Nc6 {[%clk 0:03:01.4]} 3. Bb5 {[%clk 0:03:00.1]} 3... Bc5 {[%clk
0:03:01.3]} 4. O-O {[%clk 0:02:58.9]} 4... Qf6 {[%clk 0:03:01.2]} 5. Nc3 {[%clk
0:02:57.5]} 5... Nge7 {[%clk 0:03:01.2]} 6. Nd5 {[%clk 0:02:56.1]} 6... Nxd5
{[%clk 0:02:59.6]} 7. exd5 {[%clk 0:02:56.3]} 7... Nd4 {[%clk 0:02:59.9]} 8.
Nxd4 {[%clk 0:02:53.8]} 8... Bxd4 {[%clk 0:02:58.5]} 9. c3 {[%clk 0:02:53.7]}
9... Bb6 {[%clk 0:02:58.4]} 10. d4 {[%clk 0:02:47]} 10... O-O {[%clk 0:02:57.5]}
11. dxe5 {[%clk 0:02:39.5]} 11... Qxe5 {[%clk 0:02:57]} 12. Qf3 {[%clk 0:02:36]}
12... c6 {[%clk 0:02:55.6]} 13. Bc4 {[%clk 0:02:35.9]} 13... Bc7 {[%clk
0:02:49.2]} 14. g3 {[%clk 0:02:33.6]} 14... b5 {[%clk 0:02:45.7]} 15. Bb3 {[%clk
0:02:19.4]} 15... Bb7 {[%clk 0:02:43.9]} 16. Qg4 {[%clk 0:02:10.5]} 16... Qf6
{[%clk 0:02:29.4]} 17. Qxd7 {[%clk 0:01:58]} 17... Rac8 {[%clk 0:02:23.7]} 18.
Be3 {[%clk 0:01:48.2]} 18... Rfd8 {[%clk 0:02:14.5]} 19. Qg4 {[%clk 0:01:43.5]}
19... Bb6 {[%clk 0:02:06.5]} 20. Bxb6 {[%clk 0:01:28.6]} 20... axb6 {[%clk
0:02:05.7]} 21. Rad1 {[%clk 0:01:19.6]} 21... c5 {[%clk 0:02:05.6]} 22. Rfe1
{[%clk 0:01:14.4]} 22... g6 {[%clk 0:01:46.3]} 23. h4 {[%clk 0:01:13.3]} 23...
c4 {[%clk 0:01:46.2]} 24. Bc2 {[%clk 0:01:12.6]} 24... h5 {[%clk 0:01:46.4]} 25.
Qh3 {[%clk 0:01:04.7]} 25... b4 {[%clk 0:01:46]} 26. Re3 {[%clk 0:00:54.3]}
26... bxc3 {[%clk 0:01:45.7]} 27. bxc3 {[%clk 0:00:49.5]} 27... Ra8 {[%clk
0:01:45.3]} 28. Be4 {[%clk 0:00:29.5]} 28... Rxa2 {[%clk 0:01:41.1]} 29. Rf3
{[%clk 0:00:29.5]} 29... Qe5 {[%clk 0:01:36.7]} 30. Rf4 {[%clk 0:00:27.9]} 30...
Qxc3 {[%clk 0:01:28.8]} 31. Bxg6 {[%clk 0:00:21]} 31... fxg6 {[%clk 0:01:19.8]}
32. Qe6+ {[%clk 0:00:21]} 32... Kh8 {[%clk 0:01:19.4]} 33. Qe7 {[%clk
0:00:20.7]} 33... Rg8 {[%clk 0:01:11.1]} 34. Qxb7 {[%clk 0:00:15.6]} 34... Rb2
{[%clk 0:00:57.4]} 35. d6 {[%clk 0:00:12.7]} 35... Rd2 {[%clk 0:00:54.5]} 36.
Rxd2 {[%clk 0:00:12.1]} 36... Qxd2 {[%clk 0:00:54.8]} 37. Rf7 {[%clk 0:00:12]}
37... Qc1+ {[%clk 0:00:48]} 38. Kh2 {[%clk 0:00:11.6]} 38... Qh6 {[%clk
0:00:48.5]} 39. Qe7 {[%clk 0:00:11.3]} 39... g5 {[%clk 0:00:47.9]} 40. d7 {[%clk
0:00:09.7]} 40... gxh4 {[%clk 0:00:46.3]} 41. d8=Q {[%clk 0:00:05.4]} 41...
hxg3+ {[%clk 0:00:46.1]} 42. fxg3 {[%clk 0:00:05.2]} 42... Qd2+ {[%clk
0:00:43.7]} 43. Qxd2 {[%clk 0:00:04.8]} 43... c3 {[%clk 0:00:42.2]} 44. Qh6#
{[%clk 0:00:04.9]} 1-0

[Event "Early-Titled-Tuesday-Blitz-October-24-2023"]
[Site "Chess.com"]
[Date "2023.10.24"]
[Round "2"]
[White "DonJuanEGenaro"]
[Black "SargissyanSargis"]
[Result "0-1"]
[WhiteElo "1785"]
[BlackElo "2411"]
[TimeControl "180+1"]
[EndTime "8:16:42 PDT"]
[Termination "SargissyanSargis won by resignation"]

1. Nf3 {[%clk 0:02:55.6]} 1... Nf6 {[%clk 0:02:59.4]} 2. d4 {[%clk 0:02:54.5]}
2... g6 {[%clk 0:02:58.4]} 3. Bf4 {[%clk 0:02:54.1]} 3... Bg7 {[%clk 0:02:58.3]}
4. e3 {[%clk 0:02:53.8]} 4... O-O {[%clk 0:02:54.4]} 5. Be2 {[%clk 0:02:53.7]}
5... d6 {[%clk 0:02:53.6]} 6. O-O {[%clk 0:02:53.3]} 6... Nc6 {[%clk 0:02:52.8]}
7. h3 {[%clk 0:02:52.9]} 7... e5 {[%clk 0:02:19.4]} 8. dxe5 {[%clk 0:02:49.9]}
8... dxe5 {[%clk 0:02:19.5]} 9. Nxe5 {[%clk 0:02:35.3]} 9... Nd5 {[%clk
0:02:16]} 10. Nxc6 {[%clk 0:02:29.1]} 10... bxc6 {[%clk 0:02:15.7]} 11. c3
{[%clk 0:02:21.8]} 11... Nxf4 {[%clk 0:02:12.9]} 12. exf4 {[%clk 0:02:21.8]}
12... Qf6 {[%clk 0:02:07.7]} 13. Bf3 {[%clk 0:02:21.2]} 13... Rb8 {[%clk
0:02:02.2]} 14. Qc1 {[%clk 0:02:01.3]} 14... Bh6 {[%clk 0:01:52.2]} 15. g3
{[%clk 0:01:49]} 15... Bxh3 {[%clk 0:01:50.3]} 16. Re1 {[%clk 0:01:48.5]} 16...
g5 {[%clk 0:01:41.8]} 17. Kh2 {[%clk 0:01:47.1]} 17... gxf4 {[%clk 0:01:16]} 18.
Kxh3 {[%clk 0:01:46.1]} 18... fxg3 {[%clk 0:01:15.9]} 19. Qd1 {[%clk 0:01:45.8]}
19... Rbd8 {[%clk 0:00:43]} 20. Qe2 {[%clk 0:01:43.4]} 20... Rde8 {[%clk
0:00:33.9]} 21. Qxe8 {[%clk 0:01:26.8]} 21... Rxe8 {[%clk 0:00:34.1]} 22. Rxe8+
{[%clk 0:01:26.3]} 22... Kg7 {[%clk 0:00:35]} 23. Kg2 {[%clk 0:01:20.2]} 23...
gxf2 {[%clk 0:00:29.6]} 24. Kxf2 {[%clk 0:01:06]} 24... Qh4+ {[%clk 0:00:25.2]}
25. Ke2 {[%clk 0:01:03]} 25... Qh2+ {[%clk 0:00:24.4]} 26. Kd3 {[%clk
0:00:59.6]} 26... Qxb2 {[%clk 0:00:25]} 27. Re2 {[%clk 0:00:37.8]} 27... Qxa1
{[%clk 0:00:21.7]} 28. Rg2+ {[%clk 0:00:11.5]} 28... Kf8 {[%clk 0:00:20.4]} 29.
Na3 {[%clk 0:00:11.2]} 29... Qf1+ {[%clk 0:00:18]} 30. Ke4 {[%clk 0:00:10.5]}
30... f5+ {[%clk 0:00:17]} 31. Ke5 {[%clk 0:00:06.3]} 31... Qxf3 {[%clk
0:00:17.1]} 0-1

[Event "Early-Titled-Tuesday-Blitz-October-24-2023"]
[Site "Chess.com"]
[Date "2023.10.24"]
[Round "2"]
[White "rocket10jan"]
[Black "GianmarcoVaR"]
[Result "0-1"]
[WhiteElo "2382"]
[BlackElo "2737"]
[TimeControl "180+1"]
[EndTime "8:16:44 PDT"]
[Termination "GianmarcoVaR won by resignation"]

1. e4 {[%clk 0:03:00.9]} 1... c5 {[%clk 0:02:59.8]} 2. Nf3 {[%clk 0:03:00.5]}
2... d6 {[%clk 0:02:59.7]} 3. d4 {[%clk 0:03:00.8]} 3... cxd4 {[%clk 0:02:59.6]}
4. Nxd4 {[%clk 0:03:01.7]} 4... Nf6 {[%clk 0:03:00]} 5. Nc3 {[%clk 0:03:01.9]}
5... a6 {[%clk 0:03:00.3]} 6. Bg5 {[%clk 0:02:59.1]} 6... Nbd7 {[%clk
0:02:59.8]} 7. f4 {[%clk 0:02:57.4]} 7... Qc7 {[%clk 0:02:59.3]} 8. Qe2 {[%clk
0:02:57]} 8... e6 {[%clk 0:02:18.7]} 9. O-O-O {[%clk 0:02:53.1]} 9... h6 {[%clk
0:02:13.9]} 10. Bh4 {[%clk 0:02:27.8]} 10... Be7 {[%clk 0:02:12.9]} 11. g4
{[%clk 0:02:27.9]} 11... Nxe4 {[%clk 0:02:04.5]} 12. Nxe4 {[%clk 0:02:23.1]}
12... Bxh4 {[%clk 0:02:04.9]} 13. Nxe6 {[%clk 0:02:19]} 13... fxe6 {[%clk
0:01:46.4]} 14. Nxd6+ {[%clk 0:02:19]} 14... Kf8 {[%clk 0:01:41.9]} 15. Qxe6
{[%clk 0:02:06.4]} 15... Nf6 {[%clk 0:01:34.1]} 16. Qe5 {[%clk 0:01:43.9]} 16...
Bxg4 {[%clk 0:01:24.4]} 17. Be2 {[%clk 0:01:41.8]} 17... Bxe2 {[%clk 0:00:59.4]}
18. Qxe2 {[%clk 0:01:42.7]} 18... Rd8 {[%clk 0:00:59]} 19. Qe6 {[%clk
0:01:30.9]} 19... g6 {[%clk 0:00:30.5]} 20. Rhe1 {[%clk 0:01:07.5]} 20... Rh7
{[%clk 0:00:24.7]} 21. Nxb7 {[%clk 0:00:31.4]} 21... Re8 {[%clk 0:00:17.4]} 22.
Qd6+ {[%clk 0:00:29.3]} 22... Qxd6 {[%clk 0:00:17.2]} 23. Rxe8+ {[%clk 0:00:29]}
23... Nxe8 {[%clk 0:00:16]} 24. Nxd6 {[%clk 0:00:29.9]} 24... Rd7 {[%clk
0:00:14]} 25. Nxe8 {[%clk 0:00:29.8]} 25... Rxd1+ {[%clk 0:00:14.7]} 26. Kxd1
{[%clk 0:00:30.7]} 26... Kxe8 {[%clk 0:00:15.5]} 27. Ke2 {[%clk 0:00:31.3]}
27... Kd7 {[%clk 0:00:15.9]} 28. Kf3 {[%clk 0:00:32]} 28... Ke6 {[%clk
0:00:16.5]} 29. Ke4 {[%clk 0:00:32.6]} 29... Bf6 {[%clk 0:00:17.2]} 30. b3
{[%clk 0:00:32]} 30... a5 {[%clk 0:00:15.8]} 31. c4 {[%clk 0:00:31.9]} 31... Be7
{[%clk 0:00:16.3]} 32. Kd4 {[%clk 0:00:31.2]} 32... Kf5 {[%clk 0:00:15.7]} 33.
c5 {[%clk 0:00:31.4]} 33... Kxf4 {[%clk 0:00:16]} 34. c6 {[%clk 0:00:31.6]}
34... Bd8 {[%clk 0:00:14.4]} 35. Kd5 {[%clk 0:00:31.5]} 35... g5 {[%clk
0:00:12.4]} 36. Kd6 {[%clk 0:00:30.9]} 36... g4 {[%clk 0:00:12.3]} 37. c7 {[%clk
0:00:31]} 37... Bxc7+ {[%clk 0:00:12.5]} 38. Kxc7 {[%clk 0:00:31.9]} 38... h5
{[%clk 0:00:12.4]} 39. a3 {[%clk 0:00:32.6]} 39... h4 {[%clk 0:00:12.6]} 40. b4
{[%clk 0:00:33.3]} 40... g3 {[%clk 0:00:12.8]} 41. hxg3+ {[%clk 0:00:33.6]}
41... hxg3 {[%clk 0:00:13.2]} 42. bxa5 {[%clk 0:00:34.1]} 42... g2 {[%clk
0:00:13.9]} 43. a6 {[%clk 0:00:34.5]} 43... g1=Q {[%clk 0:00:14.4]} 44. Kb8
{[%clk 0:00:33]} 44... Qb6+ {[%clk 0:00:13.6]} 0-1